{"text_format":"1","workbook":"xlsx","n_sheets":5,"sheets":["Меню","Запрос на выдачу ТУ юр лицо","Запрос на выдачу ТУ ИП","Запрос на выдачу ТУ физ лицо","Списки"],"not_rendered":{"charts":0,"images":0,"macros":1,"external_links":2,"defined_names":6,"comments":0,"pivot_tables":0},"unopened":[],"bounds":{"document_bytes":16777216,"sheet_cells":100000,"rows_first":2000,"rows_last":500,"rows_between":2000,"halvings":0,"cell_chars":16384,"cell_head_chars":4096},"cells_cut":0,"cells_raw":0,"read":"whole","date_system":"1900"}

{"sheet":"Меню","index":0,"n_rows":7,"n_cols":2,"rows_kept":7,"cut":false,"hidden":false,"merged":[]}
[]
[null,"Выберите нужный вариант:"]
[null,"Предоставление Технических условия подключения объекта капитального строительства к тепловым сетям ООО \"ТСК Мосэнерго\""]
[null,"Форма запроса в случае если Вы:"]
[null,"Юридическое лицо"]
[null,"Индивидуальный предприниматель"]
[null,"Физическое лицо"]

{"sheet":"Запрос на выдачу ТУ юр лицо","index":1,"n_rows":110,"n_cols":12,"rows_kept":110,"cut":false,"hidden":false,"merged":[[107,2,107,3],[107,9,107,10],[2,7,2,10],[6,1,6,10],[103,2,103,9],[105,2,105,10],[106,9,106,10],[84,1,84,2],[84,4,84,10],[86,1,86,10],[88,1,90,10],[91,1,91,10],[92,1,92,10],[94,1,95,10],[97,1,97,10],[98,1,98,10],[37,1,37,4],[38,2,38,10],[41,2,41,5],[41,7,41,10],[43,2,43,10],[45,2,45,4],[47,2,47,10],[55,1,55,10],[78,1,78,10],[80,1,80,7],[80,8,80,9],[51,2,51,10],[53,2,53,10],[18,1,18,10],[35,2,35,4],[35,8,35,10],[21,2,21,4],[21,6,21,10],[22,2,22,7],[22,9,22,10],[23,2,23,7],[24,2,24,7],[24,9,24,10],[26,2,26,10],[27,2,27,10],[31,2,31,10],[33,2,33,4],[33,8,33,10],[29,2,29,10],[99,1,99,10],[18,11,20,11],[20,2,20,10],[4,1,4,10],[7,1,7,10],[8,1,8,10],[9,1,9,10],[10,1,12,2],[10,6,10,7],[10,8,10,9],[12,6,12,7],[12,8,12,9],[15,1,16,1],[15,3,16,5],[15,6,16,6],[15,7,16,9]]}
[]
[null,"НА БЛАНКЕ ОРГАНИЗАЦИИ для юридического лица",null,null,null,null,null,null,null,null,null,"Комментарии для заполнения:"]
[null,null,null,null,null,null,null,"Генеральному директору\nООО «ТСК Мосэнерго»\nГоряинову Д.В."]
[]
[null,"ЗАПРОС О ПРЕДОСТАВЛЕНИИ ТЕХНИЧЕСКИХ УСЛОВИЙ  ПОДКЛЮЧЕНИЯ К СИСТЕМЕ ТЕПЛОСНАБЖЕНИЯ ООО \"ТСК МОСЭНЕРГО\""]
[null,null,null,null,null,"(для юридического лица)"]
[null,"Уважаемый Денис Викторович!"]
[null,"Прошу Вас подготовить и выдать технические условия подключения к системе теплоснабжения ООО \"ТСК Мосэнерго\" реконструируемого / проектируемого объекта капитального строительства:"]
[null,"(наименование объекта)"]
[null,"(наименование объекта)"]
[null,"с планируемой величиной необходимой подключаемой нагрузки",null,null,"с учетом ГВС макс",null,null,null,"Гкал / час"]
[]
[null,null,null,null,"с учетом ГВС ср",null,null,null,"Гкал / час"]
[]
[null,"в связи с:"]
[null,"необходимостью подключения нового объекта",null,"увеличением тепловой нагрузки или тепловой мощности подключаемого объекта",null,null,null,"реконструкцией или модернизацией объекта без увеличения тепловой нагрузки или тепловой мощности",null,null,null,"Необходимо выбрать нужный вариант"]
[]
[]
[null,"1. Сведения о заявителе:"]
[]
[null,"Полное наименование организации"]
[]
[null,"Ф.И.О. уполномоченного органа (представителя)",null,null,null,null,null,null,"ИНН"]
[null,null,"* В данной графе указываются лица, имеющие право действовать от имени Общества на основании доверенности, либо без доверенности на основании учредительных документов."]
[null,"Документ, подтверждающий полномочия представителя",null,null,null,null,null,null,"ОГРН"]
[]
[null,"Адрес места нахождения","Индекс, город, улица, дом, строение, корпус, владение"]
[null,null,"** Место нахождения юридического лица определяется местом его государственной регистрации на территории Российской Федерации. Юридическое лицо несет риск последствий неполучения юридически значимых сообщений, доставленных по адресу, указанному в ЕГРЮЛ. Сообщения, доставленные по адресу, указанному в ЕГРЮЛ, считаются полученными юридическим лицом, даже если оно не находится по указанному адресу."]
[]
[null,"Почтовый адрес","Индекс, город, улица, дом, строение, корпус, владение"]
[]
[null,"Контактное лицо (Ф.И.О.)"]
[]
[null,"Основной телефон ",null,null,null,null,null,"Дополнительный телефон"]
[]
[null,"Основной e-mail",null,null,null,null,null,"Дополнительный e-mail"]
[]
[null,"Уведомить меня по основным контактным данным ",null,null,null,null,null,null,null,null,null,"Необходимо выбрать нужный вариант"]
[null,null,"*** В случае если Заявитель будет недоступен по вышеуказанному контакту, Технические условия подключения будут отправлены почтой по  адресу, указанному в Разделе 1 настоящего Запроса"]
[null,"2. Местонахождение подключаемого объекта"]
[]
[null,"Город",null,null,null,null,"Район"]
[]
[null,"Населённый пункт"]
[]
[null,"Округ"]
[]
[null,"Улица"]
[]
[null,"Дом",null,null,"Владение",null,"Корпус",null,null,"Строение"]
[]
[null,"Прочее"]
[]
[null,"Кадастровый номер"]
[]
[null,"3. Технические параметры подключаемого объекта (заполняется обязательно: сведения о размере суммарной подключаемой тепловой нагрузки с указанием вида теплоносителя и его параметров (давление и температура), категории надежности)"]
[null,"3.1 Таблица тепловых нагрузок по видам потребления",null,null,null,null,null,null,"поле не заполняется"]
[null,"(Заполняется одна из двух таблиц)"]
[null,"Для неподключенных строящихся (построенных) объектов:",null,null,null,null,null,null,"поле считается автоматически"]
[]
[null,"Наименование","Отопление","Вентиляция","Тепловые завесы","ГВС ср.","ГВС макс.","Кондиционирование","Прочее","Всего (с учетом ГВС ср.)","Всего (с учетом ГВС макс)"]
[null,"Тепловая нагрузка, Гкал / час",0,0,0,0,0,0,0,{"$f":"C62+D62+E62+F62+H62+I62","v":0},{"$f":"C62+D62+E62+G62+H62+I62","v":0}]
[null,"Температурный график"]
[null,"Вид теплоносителя"]
[null,"Давление, м вод. ст."]
[null,"Схема подключения "]
[]
[null,"Для реконструируемых объектов:"]
[]
[null,"Наименование","Отопление","Вентиляция","Тепловые завесы","ГВС ср.","ГВС макс.","Кондиционирование","Прочее","Всего (с учетом ГВС ср.)","Всего (с учетом ГВС макс)"]
[null,"Тепловая нагрузка существующая, Гкал / час",0,0,0,0,0,0,0,{"$f":"C71+D71+E71+F71+H71+I71","v":0},{"$f":"C71+D71+E71+G71+H71+I71","v":0}]
[null,"Тепловая нагрузка после реконструкции, Гкал / час",0,0,0,0,0,0,0,{"$f":"C72+D72+E72+F72+H72+I72","v":0},{"$f":"C72+D72+E72+G72+H72+I72","v":0}]
[null,"Тепловая нагрузка дополнительная, Гкал / час",{"$f":"C72-C71","v":0},{"$f":"D72-D71","v":0},0,0,0,0,0,{"$f":"J72-J71","v":0},{"$f":"K72-K71","v":0}]
[null,"Температурный график"]
[null,"Вид теплоносителя"]
[null,"Давление, м вод. ст."]
[null,"Схема подключения"]
[]
[null,"ВАЖНО: При подключении или реконструкции нескольких объектов (зданий/корпусов), подключенных от одного абонента, в Таблицу необходимо свести все  объекты по аналогии."]
[]
[null,"3.2 Планируемый срок ввода в эксплуатацию объекта капитального строительства \n(при наличии соответствующей информации)",null,null,null,null,null,null,"мм.гг"]
[]
[null,"3.3 Назначение объекта:"]
[]
[null,"Нежилые помещения",null,null,null,null,null,null,null,null,null,"Необходимо выбрать из выпадающего списка"]
[]
[null,"3.4 Требования к надежности теплоснабжения подключаемого объекта (допустимые перерывы в подаче теплоносителей  по продолжительности, периодам годам и др.)"]
[]
[null,null,null,null,null,null,null,null,null,null,null,"Необходимо выбрать из выпадающего списка"]
[]
[]
[null,"При этом для категорий надежности 2 и 3 предусматривается перерыв в теплоснабжении в летний период времени на срок не более 14 дней, обусловленный проведением гидравлических испытаний  "]
[null,"4. Информация о границах земельного участка, на котором планируется осуществить строительство подключаемого объекта или расположен реконструируемый подключаемый объект:"]
[]
[]
[]
[]
[null,"5. Информация о разрешенном использовании земельного участка:"]
[]
[]
[]
[]
[null,null,"Перечень необходимых документов для выдачи Технических условий подключения:"]
[null,null,"копии правоустанавливающих документов, подтверждающих право собственности или иное законное право заявителя на земельный участок, права на которые не зарегистрированы в Едином государственном реестре недвижимости (в случае если такие права зарегистрированы в указанном реестре, представляются также соответствующие выписки из Единого государственного реестра недвижимости с датой выдачи не ранее 30 дней), заверенные заявителем"]
[]
[]
[null,"Заявитель",null,null,null,null,null,null,null,"дд.мм.гг"]
[null,null,"ФИО",null,null,null,"Подпись",null,null,"Дата"]
[]
[null,"М.П."]

{"sheet":"Запрос на выдачу ТУ ИП","index":2,"n_rows":109,"n_cols":12,"rows_kept":109,"cut":false,"hidden":false,"merged":[[22,9,22,10],[10,1,12,2],[10,6,10,7],[10,8,10,9],[12,6,12,7],[12,8,12,9],[15,1,16,1],[15,3,16,5],[9,1,9,10],[2,7,2,10],[4,1,4,10],[6,1,6,10],[7,1,7,10],[8,1,8,10],[15,6,16,6],[15,7,16,9],[18,1,18,10],[18,11,20,11],[20,2,20,10],[21,2,21,4],[21,6,21,10],[37,2,37,10],[23,2,23,7],[24,2,24,7],[24,9,24,10],[26,2,26,10],[30,2,30,10],[27,9,27,10],[32,2,32,4],[32,8,32,10],[34,2,34,4],[34,8,34,10],[36,1,36,4],[28,2,28,10],[22,2,22,7],[83,1,83,2],[83,4,83,10],[40,2,40,5],[40,7,40,10],[42,2,42,10],[44,2,44,4],[46,2,46,10],[50,2,50,10],[52,2,52,10],[54,1,54,10],[77,1,77,10],[79,1,79,7],[79,8,79,9],[106,2,106,3],[106,9,106,10],[85,1,85,10],[87,1,89,10],[90,1,90,10],[91,1,91,10],[93,1,94,10],[96,1,96,10],[97,1,97,10],[98,1,98,10],[102,2,102,9],[104,2,104,10],[105,9,105,10]]}
[]
[null,null,null,null,null,null,null,null,null,null,null,"Комментарии для заполнения:"]
[null,null,null,null,null,null,null,"Генеральному директору\nООО «ТСК Мосэнерго»\nГоряинову Д.В."]
[]
[null,"ЗАПРОС О ПРЕДОСТАВЛЕНИИ ТЕХНИЧЕСКИХ УСЛОВИЙ  ПОДКЛЮЧЕНИЯ К СИСТЕМЕ ТЕПЛОСНАБЖЕНИЯ ООО \"ТСК МОСЭНЕРГО\""]
[null,null,null,null,null,"(для индивидуального предпринимателя)"]
[null,"Уважаемый Денис Викторович!"]
[null,"Прошу Вас подготовить и выдать технические условия подключения к системе теплоснабжения ООО \"ТСК Мосэнерго\" реконструируемого / проектируемого объекта капитального строительства:"]
[null,"(наименование объекта)"]
[null,"(наименование объекта)"]
[null,"с планируемой величиной необходимой подключаемой нагрузки",null,null,"с учетом ГВС макс",null,null,null,"Гкал / час"]
[]
[null,null,null,null,"с учетом ГВС ср",null,null,null,"Гкал / час"]
[]
[null,"в связи с:"]
[null,"необходимостью подключения нового объекта",null,"увеличением тепловой нагрузки или тепловой мощности подключаемого объекта",null,null,null,"реконструкцией или модернизацией объекта без увеличения тепловой нагрузки или тепловой мощности",null,null,null,"Необходимо выбрать нужный вариант"]
[]
[]
[null,"1. Сведения о заявителе:"]
[]
[null,"Ф.И.О. индивидуального предпринимателя"]
[]
[null,"Ф.И.О. представителя (уполномоченного лица)",null,null,null,null,null,null,"ИНН"]
[null,null,"*В данной графе указываются лица, имеющие право действовать от имени ИП на основании доверенности."]
[null,"Документ, подтверждающий полномочия представителя",null,null,null,null,null,null,"ОГРН"]
[]
[null,"Адрес регистрации по месту жительства","Индекс, город, улица, дом, строение, корпус, владение"]
[]
[null,"Почтовый адрес","Индекс, город, улица, дом, строение, корпус, владение"]
[]
[null,"Контактное лицо (Ф.И.О.)"]
[]
[null,"Основной телефон ",null,null,null,null,null,"Дополнительный телефон"]
[]
[null,"Основной e-mail",null,null,null,null,null,"Дополнительный e-mail"]
[]
[null,"Уведомить меня по основным контактным данным ",null,null,null,null,null,null,null,null,null,"Необходимо выбрать нужный вариант"]
[null,null,"*** В случае если Заявитель будет недоступен по вышеуказанному контакту, Технические условия подключения будут отправлены почтой по  адресу, указанному в Разделе 1 настоящего Запроса"]
[null,"2. Местонахождение подключаемого объекта"]
[]
[null,"Город",null,null,null,null,"Район"]
[]
[null,"Населённый пункт"]
[]
[null,"Округ"]
[]
[null,"Улица"]
[]
[null,"Дом",null,null,"Владение",null,"Корпус",null,null,"Строение"]
[]
[null,"Прочее"]
[]
[null,"Кадастровый номер"]
[]
[null,"3. Технические параметры подключаемого объекта (заполняется обязательно: сведения о размере суммарной подключаемой тепловой нагрузки с указанием вида теплоносителя и его параметров (давление и температура), категории надежности)"]
[null,"3.1 Таблица тепловых нагрузок по видам потребления",null,null,null,null,null,null,"поле не заполняется"]
[null,"(Заполняется одна из двух таблиц)"]
[null,"Для неподключенных строящихся (построенных) объектов:",null,null,null,null,null,null,"поле считается автоматически"]
[]
[null,"Наименование","Отопление","Вентиляция","Тепловые завесы","ГВС ср.","ГВС макс.","Кондиционирование","Прочее","Всего (с учетом ГВС ср.)","Всего (с учетом ГВС макс)"]
[null,"Тепловая нагрузка, Гкал / час",0,0,0,0,0,0,0,{"$f":"C61+D61+E61+F61+H61+I61","v":0},{"$f":"C61+D61+E61+G61+H61+I61","v":0}]
[null,"Температурный график"]
[null,"Вид теплоносителя"]
[null,"Давление, м вод. ст."]
[null,"Схема подключения "]
[]
[null,"Для реконструируемых объектов:"]
[]
[null,"Наименование","Отопление","Вентиляция","Тепловые завесы","ГВС ср.","ГВС макс.","Кондиционирование","Прочее","Всего (с учетом ГВС ср.)","Всего (с учетом ГВС макс)"]
[null,"Тепловая нагрузка существующая, Гкал / час",0,0,0,0,0,0,0,{"$f":"C70+D70+E70+F70+H70+I70","v":0},{"$f":"C70+D70+E70+G70+H70+I70","v":0}]
[null,"Тепловая нагрузка после реконструкции, Гкал / час",0,0,0,0,0,0,0,{"$f":"C71+D71+E71+F71+H71+I71","v":0},{"$f":"C71+D71+E71+G71+H71+I71","v":0}]
[null,"Тепловая нагрузка дополнительная, Гкал / час",{"$f":"C71-C70","v":0},{"$f":"D71-D70","v":0},0,0,0,0,0,{"$f":"J71-J70","v":0},{"$f":"K71-K70","v":0}]
[null,"Температурный график"]
[null,"Вид теплоносителя"]
[null,"Давление, м вод. ст."]
[null,"Схема подключения"]
[]
[null,"ВАЖНО: При подключении или реконструкции нескольких объектов (зданий/корпусов), подключенных от одного абонента, в Таблицу необходимо свести все  объекты по аналогии."]
[]
[null,"3.2 Планируемый срок ввода в эксплуатацию объекта капитального строительства \n(при наличии соответствующей информации)",null,null,null,null,null,null,"мм.гг"]
[]
[null,"3.3 Назначение объекта:"]
[]
[null,null,null,null,null,null,null,null,null,null,null,"Необходимо выбрать из выпадающего списка"]
[]
[null,"3.4 Требования к надежности теплоснабжения подключаемого объекта (допустимые перерывы в подаче теплоносителей  по продолжительности, периодам годам и др.)"]
[]
[null,null,null,null,null,null,null,null,null,null,null,"Необходимо выбрать из выпадающего списка"]
[]
[]
[null,"При этом для категорий надежности 2 и 3 предусматривается перерыв в теплоснабжении в летний период времени на срок не более 14 дней, обусловленный проведением гидравлических испытаний  "]
[null,"4. Информация о границах земельного участка, на котором планируется осуществить строительство подключаемого объекта или расположен реконструируемый подключаемый объект:"]
[]
[]
[]
[]
[null,"5. Информация о разрешенном использовании земельного участка:"]
[]
[]
[]
[]
[null,null,"Перечень необходимых документов для выдачи Технических условий подключения:"]
[null,null,"копии правоустанавливающих документов, подтверждающих право собственности или иное законное право заявителя на земельный участок, права на которые не зарегистрированы в Едином государственном реестре недвижимости (в случае если такие права зарегистрированы в указанном реестре, представляются также соответствующие выписки из Единого государственного реестра недвижимости с датой выдачи не ранее 30 дней), заверенные заявителем"]
[]
[]
[null,"Заявитель",null,null,null,null,null,null,null,"дд.мм.гг"]
[null,null,"ФИО",null,null,null,"Подпись",null,null,"Дата"]
[]
[null,"М.П."]

{"sheet":"Запрос на выдачу ТУ физ лицо","index":3,"n_rows":107,"n_cols":12,"rows_kept":107,"cut":false,"hidden":false,"merged":[[9,1,9,10],[2,7,2,10],[4,1,4,10],[6,1,6,10],[7,1,7,10],[8,1,8,10],[18,1,18,10],[18,11,20,11],[20,2,20,10],[22,2,22,4],[10,1,12,2],[10,6,10,7],[10,8,10,9],[12,6,12,7],[12,8,12,9],[15,1,16,1],[15,3,16,5],[15,6,16,6],[15,7,16,9],[34,1,34,4],[35,2,35,10],[24,2,24,10],[25,9,25,10],[28,2,28,10],[30,2,30,4],[30,8,30,10],[32,2,32,4],[32,8,32,10],[26,2,26,10],[81,1,81,2],[81,4,81,10],[38,2,38,5],[38,7,38,10],[40,2,40,10],[42,2,42,4],[44,2,44,10],[48,2,48,10],[50,2,50,10],[52,1,52,10],[75,1,75,10],[77,1,77,7],[77,8,77,9],[96,1,96,10],[100,2,100,9],[102,2,102,10],[103,9,103,10],[104,2,104,3],[104,9,104,10],[95,1,95,10],[83,1,83,10],[85,1,87,10],[88,1,88,10],[89,1,89,10],[91,1,92,10],[94,1,94,10]]}
[]
[null,null,null,null,null,null,null,null,null,null,null,"Комментарии для заполнения:"]
[null,null,null,null,null,null,null,"Генеральному директору\nООО «ТСК Мосэнерго»\nГоряинову Д.В."]
[]
[null,"ЗАПРОС О ПРЕДОСТАВЛЕНИИ ТЕХНИЧЕСКИХ УСЛОВИЙ  ПОДКЛЮЧЕНИЯ К СИСТЕМЕ ТЕПЛОСНАБЖЕНИЯ ООО \"ТСК МОСЭНЕРГО\""]
[null,null,null,null,null,"(для физического лица)"]
[null,"Уважаемый Денис Викторович!"]
[null,"Прошу Вас подготовить и выдать технические условия подключения к системе теплоснабжения ООО \"ТСК Мосэнерго\" реконструируемого / проектируемого объекта капитального строительства:"]
[null,"(наименование объекта)"]
[null,"(наименование объекта)"]
[null,"с планируемой величиной необходимой подключаемой нагрузки",null,null,"с учетом ГВС макс",null,null,null,"Гкал / час"]
[]
[null,null,null,null,"с учетом ГВС ср",null,null,null,"Гкал / час"]
[]
[null,"в связи с:"]
[null,"необходимостью подключения нового объекта",null,"увеличением тепловой нагрузки или тепловой мощности подключаемого объекта",null,null,null,"реконструкцией или модернизацией объекта без увеличения тепловой нагрузки или тепловой мощности",null,null,null,"Необходимо выбрать нужный вариант"]
[]
[]
[null,"1. Сведения о заявителе:"]
[]
[null,"Ф.И.О. Заявителя"]
[]
[null,"ИНН"]
[]
[null,"Адрес регистрации по месту жительства","Индекс, город, улица, дом, строение, корпус, владение"]
[]
[null,"Почтовый адрес","Индекс, город, улица, дом, строение, корпус, владение"]
[]
[null,"Контактное лицо (Ф.И.О.)"]
[]
[null,"Основной телефон ",null,null,null,null,null,"Дополнительный телефон"]
[]
[null,"Основной e-mail",null,null,null,null,null,"Дополнительный e-mail"]
[]
[null,"Уведомить меня по основным контактным данным ",null,null,null,null,null,null,null,null,null,"Необходимо выбрать нужный вариант"]
[null,null,"*** В случае если Заявитель будет недоступен по вышеуказанному контакту, Технические условия подключения будут отправлены почтой по  адресу, указанному в Разделе 1 настоящего Запроса"]
[null,"2. Местонахождение подключаемого объекта"]
[]
[null,"Город",null,null,null,null,"Район"]
[]
[null,"Населённый пункт"]
[]
[null,"Округ"]
[]
[null,"Улица"]
[]
[null,"Дом",null,null,"Владение",null,"Корпус",null,null,"Строение"]
[]
[null,"Прочее"]
[]
[null,"Кадастровый номер"]
[]
[null,"3. Технические параметры подключаемого объекта (заполняется обязательно: сведения о размере суммарной подключаемой тепловой нагрузки с указанием вида теплоносителя и его параметров (давление и температура), категории надежности)"]
[null,"3.1 Таблица тепловых нагрузок по видам потребления",null,null,null,null,null,null,"поле не заполняется"]
[null,"(Заполняется одна из двух таблиц)"]
[null,"Для неподключенных строящихся (построенных) объектов:",null,null,null,null,null,null,"поле считается автоматически"]
[]
[null,"Наименование","Отопление","Вентиляция","Тепловые завесы","ГВС ср.","ГВС макс.","Кондиционирование","Прочее","Всего (с учетом ГВС ср.)","Всего (с учетом ГВС макс)"]
[null,"Тепловая нагрузка, Гкал / час",0,0,0,0,0,0,0,{"$f":"C59+D59+E59+F59+H59+I59","v":0},{"$f":"C59+D59+E59+G59+H59+I59","v":0}]
[null,"Температурный график"]
[null,"Вид теплоносителя"]
[null,"Давление, м вод. ст."]
[null,"Схема подключения "]
[]
[null,"Для реконструируемых объектов:"]
[]
[null,"Наименование","Отопление","Вентиляция","Тепловые завесы","ГВС ср.","ГВС макс.","Кондиционирование","Прочее","Всего (с учетом ГВС ср.)","Всего (с учетом ГВС макс)"]
[null,"Тепловая нагрузка существующая, Гкал / час",0,0,0,0,0,0,0,{"$f":"C68+D68+E68+F68+H68+I68","v":0},{"$f":"C68+D68+E68+G68+H68+I68","v":0}]
[null,"Тепловая нагрузка после реконструкции, Гкал / час",0,0,0,0,0,0,0,{"$f":"C69+D69+E69+F69+H69+I69","v":0},{"$f":"C69+D69+E69+G69+H69+I69","v":0}]
[null,"Тепловая нагрузка дополнительная, Гкал / час",{"$f":"C69-C68","v":0},{"$f":"D69-D68","v":0},0,0,0,0,0,{"$f":"J69-J68","v":0},{"$f":"K69-K68","v":0}]
[null,"Температурный график"]
[null,"Вид теплоносителя"]
[null,"Давление, м вод. ст."]
[null,"Схема подключения"]
[]
[null,"ВАЖНО: При подключении или реконструкции нескольких объектов (зданий/корпусов), подключенных от одного абонента, в Таблицу необходимо свести все  объекты по аналогии."]
[]
[null,"3.2 Планируемый срок ввода в эксплуатацию объекта капитального строительства \n(при наличии соответствующей информации)",null,null,null,null,null,null,"мм.гг"]
[]
[null,"3.3 Назначение объекта:"]
[]
[null,null,null,null,null,null,null,null,null,null,null,"Необходимо выбрать из выпадающего списка"]
[]
[null,"3.4 Требования к надежности теплоснабжения подключаемого объекта (допустимые перерывы в подаче теплоносителей по продолжительности, периодам годам и др.)"]
[]
[null,null,null,null,null,null,null,null,null,null,null,"Необходимо выбрать из выпадающего списка"]
[]
[]
[null,"При этом для категорий надежности 2 и 3 предусматривается перерыв в теплоснабжении в летний период времени на срок не более 14 дней, обусловленный проведением гидравлических испытаний  "]
[null,"4. Информация о границах земельного участка, на котором планируется осуществить строительство подключаемого объекта или расположен реконструируемый подключаемый объект:"]
[]
[]
[]
[]
[null,"5. Информация о разрешенном использовании земельного участка:"]
[]
[]
[]
[]
[null,null,"Перечень необходимых документов для выдачи Технических условий подключения:"]
[null,null,"копии правоустанавливающих документов, подтверждающих право собственности или иное законное право заявителя на земельный участок, права на которые не зарегистрированы в Едином государственном реестре недвижимости (в случае если такие права зарегистрированы в указанном реестре, представляются также соответствующие выписки из Единого государственного реестра недвижимости с датой выдачи не ранее 30 дней), заверенные заявителем"]
[]
[]
[null,"Заявитель",null,null,null,null,null,null,null,"дд.мм.гг"]
[null,null,"ФИО",null,null,null,"Подпись",null,null,"Дата"]
[]
[null,"М.П."]

{"sheet":"Списки","index":4,"n_rows":63,"n_cols":3,"rows_kept":63,"cut":false,"hidden":true,"merged":[]}
[]
[null,"Схема подключения"]
[]
[null,"Зависимая"]
[null,"Независимая"]
[]
[null,"Округ"]
[]
[null,"ЦАО"]
[null,"САО"]
[null,"СВАО"]
[null,"ВАО"]
[null,"ЮВАО"]
[null,"ЮАО"]
[null,"ЮЗАО"]
[null,"ЗАО"]
[null,"СЗАО"]
[null,"Новомосковский АО"]
[null,"Троицкий АО"]
[null,"Зеленоградский АО"]
[]
[null,"Назначение объекта"]
[]
["№","Категория","Комментарий"]
[null,null,"-"]
[1,"Жилые дома","Жилые дома"]
[2,"Общественные и административно-бытовые помещения","Гостиницы, общежития, пансионаты, д/о, мотели"]
[3,"ДОУ","Детсады, ясли"]
[4,"Объекты спортивного назначения","Стадионы, ФОК, бассейны, спортзалы, спортшколы"]
[5,"Здравоохранение","Больницы, родильные дома, поликлиники, амбулатории, госпитали, морги"]
[6,"Образование","Школы, интернаты, дом ребенка, ПТУ, училища, Вузы, амбулатории"]
[7,"Административно-офисные помещения","МФК, офисы, деловые центры, типографии, почта"]
[8,"Социально-бытовые объекты","Прачечные, химчистки, душевые, бани,парикмахерские, общественные туалеты"]
[9,"Объекты торгового назначения","Магазин, торговые центры, торговые залы, аптеки, вещевой рынок, ларьки, торговые палатки"]
[10,"Досугово-развлекательные учреждения","Дом культуры, интернет-кафе, дискотеки, клубы"]
[11,"Культурные объекты","Театры, кинотеатры, музеи, постоянно действующие выставочные комплексы (центры)"]
[12,"Предприятия общественного питания","Столовые, кафе, рестораны, пиццерии, хлебопекарня"]
[13,"Объекты производственного назначения","Заводы, цеха, станции, тепловые пункты, депо, гаражи,ремонтно-механические мастерские, склады, АЗС,СТО"]
[14,"Объекты городской инфраструктуры","Вокзалы, парки, оранжереи, теплицы, сельхоз.рынки"]
[15,"Транспортная инфраструктура","Дороги, эстакады, мосты, тоннели, путепроводы, жел.дор.пути"]
[16,"Религиозные сооружения","Храм, церковь, синагога, мечеть, монастырь, часовня, кирха"]
[17,"Объекты защиты населения","Полиция, мчс, военные, ГИБДД, вневедомственная охрана, ЧОПы, военная полиция"]
[18,"Объекты складского назначения","Склады, навесы, ангары, сараи"]
[19,"Нежилые помещения","Объекты заявлены как нежилые помещение без уточнения дальнейшего назначения"]
[20,"Комплексная застройка","Большая застройка, куда попадают  объекты из разных категорий"]
[21,"Объекты незавершенного строительства","незавершенные объекты для проведения отделочных и пуско-наладочных работ"]
[22,"Прочее","Все, что не попало в категории выше"]
[]
[null,"Отделения сбыта"]
[]
[null,"Отделение сбыта №1 - г. Москва, ул. Складочная, д. 1А, стр. 1"]
[null,"Отделение сбыта №2 - г. Москва, ул. Бибиревская, д. 8 кор. 1"]
[null,"Отделение сбыта №3 - г. Москва, ул. Шарикоподшипниковская, д.1"]
[null,"Отделение сбыта №4 - г.Москва, пр. Андропова, д. 36 к. 2"]
[null,"Отделение сбыта №5 - г.Москва, ул.Героев Панфиловцев, д.10, к. 1"]
[null,"Отделение сбыта №6 - г.Зеленоград, корп. 1111А"]
[null,"Отделение сбыта №7 - г.Московский, 3 мкр., д.2а"]
[]
[null,"Категория надёжности"]
[]
[null,"1 категория - потребители, не допускающие перерывов в подаче расчетного количества теплоты и снижения температуры воздуха в помещениях ниже расчетных"]
[null,"2 категория - потребители, допускающие снижение температуры в отапливаемых помещениях на период ликвидации аварии, но не более 54 ч: - жилых и общественных зданий до 12 °С; - промышленных зданий до 8 °С  "]
[null,"3 категория - остальные потребители"]